Cogmind - Beta 12 @@@ ROGUE MODE // 2024.01.25 @ 14:54:02 // AFD2020/Player2 Player: Michael Result: Core destroyed Performance ------------- Evolutions (0) 0 Regions Visited (1) 200 Robots Destroyed (0) 0 Value Destroyed (0) 0 Prototype IDs (0) 0 Alien Tech Used (0) 0 Bonus (135) 135 TOTAL SCORE: 335 Bonus ------- Follower Combat Kills 135 Cogmind --------- Core Integrity 0/250 Matter 278/300 Energy 76/100 System Corruption 0% Temperature Cool (0) Movement Rolling (95) Ox1 Location -10/Materials Parts ------- > --- POWER (1) -------- (None) > --- PROPULSION (2) --- Light Treads Wheel > --- UTILITY (2) ------ Heat Sink Medium Storage Unit > --- WEAPON (2) ------- (None) > --- INVENTORY (10) --- Light Treads Aluminum Leg Large Storage Unit High-capacity Storage Unit Weapon Shielding Peak State ------------ > --- POWER ------------ Ion Engine > --- PROPULSION ------- Aluminum Leg Aluminum Leg > --- UTILITY ---------- Small Storage Unit Medium Storage Unit > --- WEAPON ----------- (None) > --- INVENTORY -------- Light Treads Light Treads Wheel [Rating: 5] Favorites ----------- Power Ion Engine Engine Ion Engine Propulsion Aluminum Leg Treads Light Treads Leg Aluminum Leg Wheel Wheel Utility Medium Storage Unit Device Heat Sink Storage Medium Storage Unit Weapon None Build | -11 -10 ------- Run | Jun Mat Slots Evolved . | . . Power . | . . Propulsion . | . . Utility . | . . Weapon . | . . Parts Attached 8 | 4 4 Power 1 | 1 . Engine 1 | 1 . Core . | . . Reactor . | . . Propulsion 4 | 2 2 Treads 1 | . 1 Leg 2 | 2 . Wheel 1 | . 1 Hover . | . . Flight . | . . Utility 3 | 1 2 Device 1 | . 1 Storage 2 | 1 1 Processor . | . . Hackware . | . . Protection . | . . Artifact . | . . Weapon . | . . Energy Gun . | . . Energy Cannon . | . . Ballistic Gun . | . . Ballistic Cannon . | . . Launcher . | . . Special Weapon . | . . Impact Weapon . | . . Slashing Weapon . | . . Piercing Weapon . | . . Special Melee Weapon . | . . Unidentified Prototypes . | . . Parts Lost 2 | . 2 Power 1 | . 1 Propulsion 1 | . 1 Utility . | . . Weapon . | . . Highest Loss Streak 2 | . 2 To Critical Strikes . | . . Average Slot Usage (%) 63 | . 63 Engine 12 | . 12 Leg 26 | . 26 Device 7 | . 7 Storage 14 | . 14 Naked Turns . | . . Heaviest Build 16 | 10 16 Greatest Support 20 | 20 20 Greatest Overweight (x) 1 | . 1 Average Overweight (x) . | . . Largest Inventory Capacity 10 | 8 10 Average Capacity 9 | 6 9 Most Carried 6 | 4 6 Average Carried 4 | 3 4 Final Capacity 10 | 8 10 Final Carried 5 | 4 5 Class Distribution -------------------- 100% | Mutant Dominant Class ---------------- Mutant | -10/Materials Resources | -11 -10 ----------- Run | Jun Mat Matter Collected 240 | 240 . Remotely . | . . Salvage Created . | . . Parts . | . . Haulers Intercepted . | . . Recyclers Shooed . | . . Parts Field Recycled . | . . Retrieved Matter . | . . Parts Self-Destructed . | . . Prevented . | . . Kills | -11 -10 ------- Run | Jun Mat Combat Hostiles Destroyed . | . . Classes Destroyed . | . . Best Kill Streak . | . . Combat Bots Only . | . . Max Kills in Single Turn . | . . Gunslinging . | . . Exploded . | . . Melee . | . . Uniques/NPCs Destroyed . | . . Combat | -11 -10 -------- Run | Jun Mat Damage Taken 409 | . 409 Core 100 | . 100 Absorbed by Shields . | . . Core Remaining (%) 100 | 100 . Volleys Fired . | . . Largest . | . . Hottest . | . . Shots Fired . | . . Gun . | . . Cannon . | . . Launcher . | . . Special . | . . Kinetic . | . . Thermal . | . . Explosive . | . . Electromagnetic . | . . Robot Hit Streak . | . . Robot Miss Streak . | . . Penetration Max . | . . Secondary Targets . | . . Shots Hit Robots . | . . Core Hits . | . . Critical Kills . | . . Critical Parts Destroyed . | . . Critical Strikes . | . . Melee Attacks . | . . Impact . | . . Slashing . | . . Piercing . | . . Sneak Attacks . | . . Combat Hostiles . | . . Follow-up Attacks . | . . Damage Inflicted 4 | . 4 Guns . | . . Cannons . | . . Explosions . | . . Melee . | . . Ramming 4 | . 4 Kinetic . | . . Thermal . | . . Explosive . | . . Electromagnetic . | . . Impact . | . . Slashing . | . . Piercing . | . . Highest Corruption . | . . Average Corruption . | . . Corruption Purged . | . . Corruption Blocked . | . . Overload Shots . | . . Overflow Damage . | . . Projectiles . | . . Explosions . | . . Melee . | . . Knockbacks . | . . Impact . | . . Kinetic . | . . Secondary . | . . Self-Inflicted Damage . | . . Shots . | . . Rammed . | . . Targets Rammed 2 | . 2 Kicked 2 | . 2 Crushed . | . . Highest Temperature . | . . Average Temperature . | . . Received Heat Transfer 138 | . 138 Siege Activations . | . . Robots Corrupted . | . . Combat Hostiles . | . . Parts Fried . | . . Impact Corruptions . | . . Robots Melted . | . . Combat Hostiles . | . . Parts Melted . | . . Heat Transferred . | . . Parts Sabotaged . | . . Parts Stolen . | . . Parts Stripped . | . . Power Chain Reactions . | . . Missiles Intercepted . | . . Alert | -11 -10 ------- Run | Jun Mat Peak Influence 171 | . 171 Initial . | . . Average 67 | . 85 Maximum Alert Level . | . . Low Security (%) 100 | 100 100 Level 1 . | . . Level 2 . | . . Level 3 . | . . Level 4 . | . . Level 5 . | . . High Security . | . . Max Security . | . . Squads Dispatched 3 | . 3 Investigation . | . . Extermination . | . . Reinforcement 3 | . 3 Assault . | . . Garrison . | . . Intercept . | . . Searches Triggered . | . . Construction Impeded . | . . Haulers Reinforced . | . . Active Scanning Responses . | . . Cargo Convoy Interrupts . | . . Stealth | -11 -10 --------- Run | Jun Mat Distress Signals 2 | . 2 Communications Jammed . | . . Distress Signals . | . . Times Spotted 12 | . 12 Peak Tracking Total 7 | . 7 Tactical Retreats 1 | . 1 Traps | -11 -10 ------- Run | Jun Mat Traps Triggered . | . . Indirectly . | . . Trap Hack Attempts . | . . Triggered . | . . Disarmed . | . . Reprogrammed . | . . Reused . | . . Traps Extracted . | . . Installed . | . . Triggered . | . . Machines | -11 -10 ---------- Run | Jun Mat Machines Disabled . | . . Max in Single Turn . | . . Machines Repaired . | . . Machines Sabotaged . | . . Overloaded Fab Kills . | . . Hacking | -11 -10 --------- Run | Jun Mat Machines Accessed 3 | . 3 Terminals 2 | . 2 Fabricators . | . . Repair Stations . | . . Recycling Units 1 | . 1 Scanalyzers . | . . Garrison Access . | . . Total Hacks 4 | . 4 Successful 1 | . 1 Failed 3 | . 3 Catastrophic . | . . Database Lockouts . | . . Manual . | . . Terminals 2 | . 2 Fabricators . | . . Repair Stations . | . . Recycling Units 2 | . 2 Scanalyzers . | . . Garrison Access . | . . Terminal Hacks . | . . Fabricator Hacks . | . . Repair Station Hacks . | . . Recycling Unit Hacks 1 | . 1 Retrieve Components 1 | . 1 Scanalyzer . | . . Garrison Access Hacks . | . . Unauthorized Hacks . | . . Terminals . | . . Fabricators . | . . Repair Stations . | . . Recycling Units . | . . Scanalyzers . | . . Garrison Access . | . . Data Cores Recovered . | . . Used . | . . Hacking Detections 2 | . 2 Full Trace Events . | . . Feedback Events . | . . Feedback Blocked . | . . Robot Schematics Acquired . | . . Robots Built . | . . Authchips . | . . Time . | . . Total Robot Build Rating . | . . Part Schematics Acquired . | . . Parts Built . | . . Authchips . | . . Time . | . . Total Part Build Rating . | . . Parts Repaired . | . . Time . | . . Parts Recycled . | . . Recycled Matter . | . . Retrieved Matter . | . . Retrieved Components 3 | . 3 Parts Scanalyzed . | . . Part Schematics Acquired . | . . Parts Damaged . | . . Bothacking | -11 -10 ------------ Run | Jun Mat Used RIF Installer . | . . Robots Hacked . | . . Non-combat . | . . Combat . | . . Robot Hacks Applied . | . . Relay Couplers Released . | . . Fabnet Peak Effective % . | . . Robots Rewired . | . . Allies Hacked . | . . Hacks Repelled . | . . Allies | -11 -10 -------- Run | Jun Mat Total Allies 1 | . 1 Largest Group 1 | . 1 Highest-Rated Group 55 | . 55 Highest-Rated Ally 55 | . 55 Total Orders . | . . Ally Attacks 42 | . 42 Total Damage 584 | . 584 Kills 7 | . 7 Allies Corrupted . | . . Allies Melted . | . . Intel | -11 -10 ------- Run | Jun Mat Robot Analysis Total . | . . Derelict Logs Recovered . | . . Drone Launches . | . . Drone Recoveries . | . . Exploration | -11 -10 ------------- Run | Jun Mat Turns Passed 253 | 55 198 Spaces Moved 198 | 43 155 Core 8 | 8 . Treads . | . . Legs 184 | 35 149 Wheels 6 | . 6 Hover . | . . Flight . | . . Fastest Speed 50 | 50 95 Average Speed 116 | 106 119 Slowest Speed 120 | 120 120 Overloaded Moves . | . . Propulsion Burnouts . | . . Robots Hopped . | . . Cave-ins Triggered . | . . Exploration Rate (%) 21 | 3 40 Regions Visited 1 Branch Regions . Pre-discovered Areas . | . . Known Exits Taken . | . . Unknown Exits Taken 1 | 1 . Scrap Searched . | . . Spaces Dug . | . . Terrain Destroyed . | . . Melee . | . . Projectile . | . . AOE . | . . Terrain Rammed . | . . Walls Destroyed . | . . Machines Disabled . | . . Actions | -11 -10 --------- Run | Jun Mat Total 217 | 50 167 Wait 1 | . 1 Move 197 | 42 155 Hop . | . . Pick Up 7 | 4 3 Fast Attach 6 | 4 2 Attach 1 | . 1 Detach . | . . Swap 1 | . 1 Drop 2 | . 2 Fire . | . . Melee . | . . Ram . | . . Kick 2 | . 2 Crush . | . . Escape Stasis . | . . Rewire . | . . Trap . | . . Miscellaneous . | . . Route ------- -11/Junkyard -10/Materials (discovered 2 exits: [*Mat] / [*Min]) History --------- Turn | Location | Event 10 | -11/Junkyard | Discovered new exit (range 14) 56 | -11/Junkyard | Entered Materials 125 | -10/Materials | Discovered new exit (range 12) 194 | -10/Materials | Core integrity fell below 50% 213 | -10/Materials | Discovered new exit (range 16) 240 | -10/Materials | Core integrity fell below 20% 254 | -10/Materials | Core destroyed Last Messages --------------- 00174_ K-01 Serf collects debris. 00174_ U-05 Engineer builds a Wall. 00175_ K-01 Serf collects debris. 00182_ Connecting with Recycling Unit... >>Retrieve(Components) Retrieving 3 components... Flight Unit Com. Wheel Wheel 00198_ Acquired Weapon Shielding. 00212_ R-06 Scavenger inserts Aluminum Leg into recycling unit. 00213_ EXIT=FOUND 00215_ R-06 Scavenger inserts Heat Sink into recycling unit. 00218_ R-06 Scavenger inserts Ion Engine into recycling unit. 00226_ W-16 Scout destroyed. 00230_ Ion Engine destroyed. 00236_ S-10 Pest destroyed. 00239_ Kicked S-10 Pest out of the way. 00245_ Aluminum Leg destroyed. 00250_ K-01 Serf collects debris. Map ----- +----------------------------------------------------+ | ????????????########+#" #?########## | | ??????????? ?#" ### # | | ??????????? # ## # | | ?????????? # ## """ # | | ???????????? / T ## """ # | | ?????????? # ## """ # | | ??????????? # ## ! # | | ??????????? ?## ### # | | ????????????########??# #?# # | | ??????????????????????# #?######+### | | ??????????????????????# #????# # | | ??????????????????????# #????# # | | ??????????????????????# ###### # | | ??????????????????????# ##"""# # | | ??????????????????????# ##"Y"# # | | ????????????????????? # = # | | ????????????????# = = # | | ????????????????+ = ! # | | ????????????????# ! ! # | | ????????????????# ##### """"" # | | ????????????????######????#%! """"" # | | ?????????????##############! """"" # | | ?????????????# # """"" # | | ?????????????# # ^""""" # | | ?????????????# # """"" # | | ?????????????# @# """"" # | | ?????????????# + # | | ?????????????############## # | | ???????????????????# # # | | ???????????????????# # # | | ???????????????????#"" # # | | ???????????????????#"T / # | | ???????????????????#"" # * ### # | | ???????????????????# +=%=#?# < # | | ???????????????????#########+#### # | | ???????????????????????# ###### | | ???????????????????????# """ #????? | | ???????????????????????# """ #????? | | ???????????????????????# """ #????? | | ???????????????????????# #????? | | ???????????????????????# !! #????? | | ???????????????????????# !! #????? | | ???????????????????????# ! #????? | | ???????????????????????# ??#????? | | ????????????????????????#####????????? | | | | | | | | | | | +----------------------------------------------------+ Best States ------------- Heat Dissipation 35 Energy Generation 10 Energy Capacity 250 Matter Stores 300 Matter Capacity 300 Sight Range 16 Terrain Scan Density 10 Evasion (%) 55 Item Schematics ----------------- None Robot Schematics ------------------ None Fabricated ------------ Nothing Alien Tech Used ----------------- None Achievements -------------- None Challenges ------------ None Player 2 | -11 -10 ---------- Run | Jun Mat Slots Evolved . | . . Power . | . . Propulsion . | . . Utility . | . . Weapon . | . . Parts Attached 6 | . 6 Parts Lost 4 | . 4 Damage Taken 382 | . 382 Core 159 | . 159 Player 2/Cogmind (%) 61 | . 61 Absorbed by Shields . | . . Damage Inflicted 584 | . 584 Player 2/Cogmind (%) 99 | . 99 Combat Hostiles Destroyed 5 | . 5 Player 2/Cogmind (%) 100 | . 100 Game ------ Seed HardcellCommSpoofer Manual? 0 Play Time 00:06:02 Cumulative 854.7 hours Start 2024.01.23 @ 22:03:17 End 2024.01.25 @ 14:54:02 Sessions 2 Manual Loads 0 Difficulty Rogue Special Mode AFD2020/Player2 Game No. 259 Rogue 223 Adventurer 36 Explorer 0 Win Type - Total 19 Types 19/0/0/0/0/0/0/0/0 Lore% 59 Gallery% 65 Achievement% 50 Wizard Run 0 Options --------- ASCII 0 Keyboard 1 Movement Vi Keybinds 0 Fullscreen 1 Font 18/Terminus Map View 76x50 Tactical HUD 1 Map Filters NONE Filters NONE Steam 0 RUN: 1411a2ae-60ba-4f65-b6f4-234c573db58c